fUST/lending_fUST_20250825
["ID","MTS","AMOUNT","RATE_DAILY","PERIOD"]
[381134113,1756065051988,-151.000001,0.00049589,120]
[381134114,1756065052000,-1987.96,0.00049589,120]
[381134115,1756065052010,-1987.96,0.00049589,120]
[381134116,1756065052019,-1987.96,0.00049589,120]
[381134117,1756065052029,-480.0,0.00049589,120]
[381134118,1756065052038,-1987.96,0.00049589,120]
[381134119,1756065052048,-582.18,0.00049589,120]
[381134120,1756065052058,-1987.96,0.00049589,120]
[381134121,1756065052071,-1987.96,0.00049589,120]
[381134122,1756065052081,-1987.96,0.00049589,120]
[381134123,1756065052091,-1987.96,0.00049589,120]
[381134124,1756065052102,-1987.96,0.00049589,120]
[381134125,1756065052112,-1987.96,0.00049589,120]
[381134126,1756065052122,-1987.96,0.00049589,120]
[381134127,1756065052131,-1987.96,0.00049589,120]
[381134128,1756065052143,-1987.96,0.00049589,120]
[381134129,1756065052153,-1987.96,0.00049589,120]
[381134130,1756065052162,-740.52,0.00049589,120]
[381134131,1756065052172,-3146.48,0.00049589,120]
[381134132,1756065052181,-5506.01,0.00049589,120]
[381134133,1756065052190,-480.0,0.00049589,120]
[381134134,1756065052200,-601.61,0.00049589,120]
[381134135,1756065052210,-2938.75,0.00049589,120]
[381134136,1756065052221,-1987.96,0.00049589,120]
[381134137,1756065052231,-1987.96556264,0.00049589,120]
[381134138,1756065052241,-3068.07,0.00049589,120]
[381134139,1756065052250,-574.34,0.00049589,120]
[381134140,1756065052259,-151.0,0.00049589,120]
[381134141,1756065052269,-480.0,0.00049589,120]
[381134142,1756065052279,-480.0,0.00049589,120]
[381134143,1756065052290,-531.78,0.00049589,120]
[381134144,1756065052300,-2017.34,0.00049589,120]
[381134145,1756065052309,-480.0,0.00049589,120]
[381134146,1756065052323,-480.0,0.00049589,120]
[381134147,1756065052333,-16747.16,0.00049589,120]
[381134148,1756065052342,-858.82,0.00049589,120]
[381134149,1756065052351,-480.0,0.00049589,120]
[381134150,1756065052361,-522.5,0.00049589,120]
[381134151,1756065052371,-480.0,0.00049589,120]
[381134152,1756065052380,-153.544,0.00049589,120]
[381134153,1756065052389,-788.67,0.00049589,120]
[381134154,1756065052398,-480.0,0.00049589,120]
[381134155,1756065052408,-902.83,0.00049589,120]
[381134156,1756065052417,-480.0,0.00049589,120]
[381134157,1756065052427,-756.84,0.00049589,120]
[381134158,1756065052437,-151.0,0.00049589,120]
[381134159,1756065052447,-186.80498,0.00049589,120]
[381134160,1756065052456,-480.0,0.00049589,120]
[381134161,1756065052466,-1638.35,0.00049589,120]
[381134162,1756065052475,-2112.28,0.00049589,120]
[381134163,1756065052486,-902.91,0.00049589,120]
[381134164,1756065052495,-480.0,0.00049589,120]
[381134165,1756065052505,-480.0,0.00049589,120]
[381134166,1756065052515,-992.9,0.00049589,120]
[381134167,1756065052524,-151.0,0.00049589,120]
[381134168,1756065052534,-480.0,0.00049589,120]
[381134169,1756065052543,-480.0,0.00049589,120]
[381134170,1756065052553,-734.49,0.00049589,120]
[381134171,1756065052562,-957.95,0.00049589,120]
[381134172,1756065052574,-1459.0,0.00049589,120]
[381134173,1756065052583,-480.0,0.00049589,120]
[381134174,1756065052593,-480.0,0.00049589,120]
[381134175,1756065052602,-480.0,0.00049589,120]
[381134176,1756065052611,-480.0,0.00049589,120]
[381134177,1756065052621,-480.0,0.00049589,120]
[381134178,1756065052630,-480.0,0.00049589,120]
[381134179,1756065052639,-1096.98,0.00049589,120]
[381134180,1756065052649,-480.0,0.00049589,120]
[381134181,1756065052658,-480.0,0.00049589,120]
[381134183,1756065052667,-480.0,0.00049589,120]
[381134185,1756065052676,-661.68,0.00049589,120]
[381134187,1756065052686,-975.46,0.00049589,120]
[381134189,1756065052695,-480.0,0.00049589,120]
[381134190,1756065052704,-870.14,0.00049589,120]
[381134191,1756065052713,-480.0,0.00049589,120]
[381134192,1756065052723,-480.0,0.00049589,120]
[381134194,1756065052733,-480.0,0.00049589,120]
[381134196,1756065052742,-480.0,0.00049589,120]
[381134198,1756065052752,-480.0,0.00049589,120]
[381134200,1756065052761,-480.0,0.00049589,120]
[381134201,1756065052770,-509.64,0.00049589,120]
[381134202,1756065052779,-480.0,0.00049589,120]
[381134204,1756065052789,-480.0,0.00049589,120]
[381134206,1756065052799,-151.0,0.00049589,120]
[381134207,1756065052808,-480.0,0.00049589,120]
[381134208,1756065052818,-480.0,0.00049589,120]
[381134209,1756065052827,-151.0,0.00049589,120]
[381134210,1756065052836,-1609.38,0.00049589,120]
[381134211,1756065052845,-480.0,0.00049589,120]
[381134212,1756065052854,-751.63,0.00049589,120]
[381134213,1756065052864,-237.330567,0.00049589,120]
[381134214,1756065052873,-952.73,0.00049589,120]
[381134215,1756065052883,-480.0,0.00049589,120]
[381134216,1756065052892,-3970.66,0.00049589,120]
[381134217,1756065052901,-3011.23,0.00049589,120]
[381134218,1756065052911,-480.0,0.00049589,120]
[381134219,1756065052920,-480.0,0.00049589,120]
[381134220,1756065052929,-480.0,0.00049589,120]
[381134221,1756065052938,-480.0,0.00049589,120]
[381134222,1756065052947,-480.0,0.00049589,120]
[381134223,1756065052956,-751.81,0.00049589,120]
[381134224,1756065052966,-480.0,0.00049589,120]
[381134225,1756065052976,-242.612992,0.00049589,120]
[381134226,1756065052985,-480.0,0.00049589,120]
[381134227,1756065052994,-28608.1,0.00049589,120]
[381134228,1756065053003,-480.0,0.00049589,120]
[381134229,1756065053013,-716.07,0.00049589,120]
[381134230,1756065053022,-242.612992,0.00049589,120]
[381134231,1756065053032,-480.0,0.00049589,120]
[381134232,1756065053196,-480.0,0.00049589,120]
[381134233,1756065053206,-480.0,0.00049589,120]
[381134234,1756065053216,-242.612992,0.00049589,120]
[381134235,1756065053225,-480.0,0.00049589,120]
[381134236,1756065053235,-1029.26,0.00049589,60]
[381134237,1756065053245,-4971.73,0.00049589,120]
[381134238,1756065053254,-480.0,0.00049589,120]
[381134239,1756065053263,-242.612994,0.00049589,120]
[381134240,1756065053272,-480.0,0.00049589,120]
[381134241,1756065053282,-22503.62,0.00049589,120]
[381134242,1756065053291,-1475.95,0.00049589,30]
[381134243,1756065053301,-367.74357245,0.00049589,120]
[381134244,1756065053310,-480.0,0.00049589,120]
[381134245,1756065053321,-480.0,0.00049589,120]
[381134246,1756065053330,-1092.57,0.00049589,120]
[381134247,1756065053340,-1821.97,0.00049589,120]
[381134248,1756065053350,-480.0,0.00049589,120]
[381134249,1756065053359,-480.0,0.00049589,120]
[381134250,1756065053368,-4099.31,0.00049589,120]
[381134251,1756065053378,-480.0,0.00049589,120]
[381134252,1756065053387,-480.0,0.00049589,120]
[381134253,1756065053397,-171.39609358,0.00049589,120]
[381134254,1756065053406,-480.0,0.00049589,120]
[381134255,1756065053416,-480.0,0.00049589,120]
[381134256,1756065053425,-480.0,0.00049589,120]
[381134257,1756065053435,-480.0,0.00049589,120]
[381134258,1756065053444,-480.0,0.00049589,120]
[381134259,1756065053454,-2002.03,0.00049589,120]
[381134260,1756065053463,-480.0,0.00049589,120]
[381134261,1756065053472,-1282.01,0.00049589,120]
[381134262,1756065053481,-7922.88,0.00049589,120]
[381134263,1756065053491,-151.0,0.00049589,120]
[381134264,1756065053501,-548.62,0.00049589,120]
[381134265,1756065053510,-976.85,0.00049589,120]
[381134266,1756065053520,-480.0,0.00049589,120]
[381134267,1756065053529,-480.0,0.00049589,120]
[381134268,1756065053538,-465.71323474,0.00049589,120]
[381134269,1756065053547,-480.0,0.00049589,120]
[381134270,1756065053556,-151.0,0.00049589,120]
[381134271,1756065053567,-151.0,0.00049589,120]
[381134272,1756065053577,-800.78,0.00049589,120]
[381134273,1756065053586,-1466.54,0.00049589,120]
[381134274,1756065053596,-1000.0,0.00049589,120]
[381134275,1756065053605,-480.0,0.00049589,120]
[381134276,1756065053615,-480.0,0.00049589,120]
[381134277,1756065053624,-610.11,0.00049589,120]
[381134278,1756065053633,-660.66,0.00049589,120]
[381134279,1756065053643,-901.19,0.00049589,120]
[381134280,1756065053653,-1100.99,0.00049589,120]
[381134281,1756065053662,-1217.09,0.00049589,120]
[381134282,1756065053672,-480.0,0.00049589,120]
[381134283,1756065053681,-3517.6,0.00049589,120]
[381134284,1756065053691,-480.0,0.00049589,120]
[381134285,1756065053700,-1083.13,0.00049589,120]
[381134286,1756065053710,-497.17,0.00049589,120]
[381134287,1756065053719,-1386.09,0.00049589,120]
[381134288,1756065053729,-480.0,0.00049589,120]
[381134289,1756065053738,-4994.92,0.00049589,120]
[381134290,1756065053747,-1052.21,0.00049589,120]
[381134291,1756065053756,-480.0,0.00049589,120]
[381134292,1756065053765,-480.0,0.00049589,14]
[381134293,1756065053775,-4731.7,0.00049589,120]
[381134294,1756065053784,-1841.55,0.00049589,120]
[381134295,1756065053794,-480.0,0.00049589,120]
[381134296,1756065053803,-609.56,0.00049589,120]
[381134297,1756065053812,-9150.81,0.00049589,120]
[381134298,1756065053823,-158.59768497,0.00049589,120]
[381134299,1756065053832,-2103.72,0.00049589,120]
[381134300,1756065053842,-666.04,0.00049589,120]
[381134301,1756065053851,-1904.29,0.00049589,120]
[381134302,1756065053861,-151.0,0.00049589,120]
[381134303,1756065053871,-480.0,0.00049589,120]
[381134304,1756065053880,-3411.02,0.00049589,120]
[381134305,1756065053890,-480.0,0.00049589,120]
[381134306,1756065053899,-151.0,0.00049589,120]
[381134307,1756065053909,-1202.01,0.00049589,120]
[381134308,1756065053918,-551.84,0.00049589,120]
[381134309,1756065053928,-14764.42,0.00049589,120]
[381134310,1756065053938,-789.48,0.00049589,120]
[381134311,1756065053947,-364.86691311,0.00049589,120]
[381134312,1756065053956,-151.0,0.00049589,120]
[381134313,1756065053966,-1110.32,0.00049589,120]
[381134314,1756065053976,-544.63,0.00049589,120]
[381134315,1756065053985,-487.98,0.00049589,120]
[381134316,1756065053994,-792.4,0.00049589,120]
[381134317,1756065054004,-480.0,0.00049589,120]
[381134318,1756065054013,-480.0,0.00049589,120]
[381134319,1756065054022,-4180.7,0.00049589,120]
[381134320,1756065054032,-958.74,0.00049589,120]
[381134321,1756065054041,-856.85,0.00049589,120]
[381134322,1756065054051,-9837.34,0.00049589,120]
[381134323,1756065054061,-496.25335581,0.00049589,120]
[381134324,1756065054075,-1079.21,0.00049589,120]
[381134325,1756065054084,-480.0,0.00049589,120]
[381134326,1756065054093,-480.0,0.00049589,120]
[381134327,1756065054103,-1615.96,0.00049589,120]
[381134328,1756065054113,-480.0,0.00049589,120]
[381134329,1756065054122,-480.0,0.00049589,120]
[381134330,1756065054131,-3282.28,0.00049589,120]
[381134331,1756065054142,-1176.65,0.00049589,120]
[381134332,1756065054151,-480.0,0.00049589,120]
[381134333,1756065054161,-480.0,0.00049589,120]
[381134334,1756065054170,-500.0,0.00049589,120]
[381134335,1756065054180,-500.0,0.00049589,120]
[381134336,1756065054189,-500.0,0.00049589,120]
[381134337,1756065054199,-500.0,0.00049589,120]
[381134338,1756065054208,-696.98,0.00049589,120]
[381134339,1756065054217,-500.0,0.00049589,120]
[381134340,1756065054227,-500.0,0.00049589,120]
[381134341,1756065054236,-621.68,0.00049589,120]
[381134342,1756065054245,-151.0,0.00049589,120]
[381134343,1756065054255,-1620.16,0.00049589,120]
[381134344,1756065054265,-1316.4,0.00049589,120]
[381134345,1756065054274,-500.34,0.00049589,120]
[381134346,1756065054284,-1110.56,0.00049589,120]
[381134347,1756065054293,-2061.56,0.00049589,120]
[381134348,1756065054303,-480.0,0.00049589,120]
[381134349,1756065054312,-480.0,0.00049589,120]
[381134350,1756065054324,-1140.9,0.00049589,120]
[381134351,1756065054333,-907.13,0.00049589,120]
[381134352,1756065054343,-480.0,0.00049589,120]
[381134353,1756065054352,-480.0,0.00049589,120]
[381134354,1756065054361,-548.36,0.00049589,120]
[381134355,1756065054370,-978.71,0.00049589,120]
[381134356,1756065054379,-2888.33,0.00049589,120]
[381134357,1756065054388,-480.0,0.00049589,120]
[381134358,1756065054398,-223.62820036,0.00049589,120]
[381134359,1756065054408,-1618.33,0.00049589,120]
[381134360,1756065054418,-480.0,0.00049589,120]
[381134361,1756065054427,-459.49190417,0.00049589,120]
[381134362,1756065054474,-20.50809583,0.00049589,120]
[381134363,1756065054483,-480.0,0.00049589,120]
[381134364,1756065054493,-480.0,0.00049589,120]
[381134365,1756065054502,-493.63214008,0.00049589,120]
[381134366,1756065054522,-583.33785992,0.00049589,120]
[381134367,1756065054531,-480.0,0.00049589,30]
[381134368,1756065054540,-570.68,0.00049589,120]
[381134369,1756065054549,-480.0,0.00049589,120]
[381134370,1756065054559,-1118.37,0.00049589,120]
[381134371,1756065054570,-480.0,0.00049589,120]
[381134372,1756065054579,-964.63,0.00049589,120]
[381134373,1756065054588,-1755.14,0.00049589,120]
[381134374,1756065054598,-4829.50565426,0.00049589,3]
[381134375,1756065055353,199.0,0.00026749,20]
[381134376,1756065055510,-199.0,0.000309,120]
[381134377,1756065055520,-151.0,0.000426,120]
[381134378,1756065055529,-151.0,0.000426,120]
[381134379,1756065055539,-151.0,0.000426,120]
[381134380,1756065055548,-151.0,0.000426,120]
[381134381,1756065055557,-151.0,0.000426,120]
[381134382,1756065055567,-216.84,0.0004882,30]
[381134383,1756065055577,-151.0,0.00049089,120]
[381134384,1756065055586,-151.0,0.00049089,120]
[381134385,1756065055596,-4786.51,0.00049089,30]
[381134386,1756065055605,-151.0,0.00049089,120]
[381134387,1756065055614,-151.0,0.00049089,120]
[381134388,1756065055624,-183.53424478,0.000493,61]
[381134389,1756065055633,-151.0,0.000493,120]
[381134390,1756065055642,-151.0,0.000493,120]
[381134391,1756065055651,-151.0,0.000493,120]
[381134392,1756065055660,-2237.99434574,0.00049589,3]
[381134393,1756065055670,-616.77,0.00049589,120]
[381134394,1756065055679,-3815.24,0.00049589,120]
[381134395,1756065055688,-480.0,0.00049589,120]
[381134396,1756065055697,-676.2,0.00049589,120]
[381134397,1756065055708,-2436.62,0.00049589,120]
[381134398,1756065055717,-480.0,0.00049589,120]
[381134399,1756065055726,-480.0,0.00049589,120]
[381134400,1756065055735,-13253.09,0.00049589,120]
[381134401,1756065055745,-2268.44,0.00049589,120]
[381134402,1756065055754,-389.26705105,0.00049589,120]
[381134403,1756065055766,-848.78,0.00049589,120]
[381134404,1756065055775,-480.0,0.00049589,120]
[381134405,1756065055785,-480.0,0.00049589,120]
[381134406,1756065055794,-866.13,0.00049589,120]
[381134407,1756065055803,-236.407452,0.00049589,120]
[381134408,1756065055813,-480.0,0.00049589,120]
[381134409,1756065055824,-480.0,0.00049589,120]
[381134410,1756065055833,-575.78032048,0.00049589,120]
[381134411,1756065055843,-480.0,0.00049589,120]
[381134412,1756065055852,-480.0,0.00049589,120]
[381134413,1756065055862,-480.0,0.00049589,120]
[381134415,1756065055872,-480.0,0.00049589,120]
[381134417,1756065055882,-480.0,0.00049589,120]
[381134426,1756065056047,-3093.37,0.00049589,120]
[381134427,1756065056056,-655.27,0.00049589,14]
[381134428,1756065056068,-8280.29,0.00049589,120]
[381134429,1756065056078,-480.0,0.00049589,120]
[381134430,1756065056087,-480.0,0.00049589,7]
[381134431,1756065056095,-480.0,0.00049589,120]
[381134432,1756065056104,-224.69783673,0.00049589,120]
[381134433,1756065056115,-480.0,0.00049589,120]
[381134434,1756065056123,-627.94043359,0.00049589,2]
[381134435,1756065056132,-480.0,0.00049589,120]
[381134436,1756065056142,-1416.33,0.00049589,120]
[381134437,1756065056152,-480.0,0.00049589,120]
[381134438,1756065056161,-946.18,0.00049589,120]
[381134439,1756065056172,-480.0,0.00049589,120]
[381134440,1756065056182,-480.0,0.00049589,120]
[381134441,1756065056192,-13466.77,0.00049589,120]
[381134442,1756065056201,-1090.59,0.00049589,120]
[381134443,1756065056210,-480.0,0.00049589,120]
[381134444,1756065056220,-517.54,0.00049589,120]
[381134445,1756065056229,-480.0,0.00049589,120]
[381134446,1756065056238,-480.0,0.00049589,120]
[381134447,1756065056248,-3674.83,0.00049589,120]
[381134448,1756065056257,-480.0,0.00049589,120]
[381134449,1756065056267,-589.49,0.00049589,120]
[381134450,1756065056277,-2743.67,0.00049589,21]
[381134451,1756065056285,-834.61,0.00049589,120]
[381134452,1756065056295,-480.0,0.00049589,120]
[381134453,1756065056305,-1678.81,0.00049589,120]
[381134454,1756065056314,-702.95,0.00049589,120]
[381134455,1756065056327,-720.63,0.00049589,120]
[381134456,1756065056336,-177.111748,0.00049589,120]
[381134457,1756065056346,-480.0,0.00049589,120]
[381134459,1756065056356,-967.49,0.00049589,120]
[381134461,1756065056365,-237.72445366,0.00049589,120]
[381134463,1756065056375,-480.0,0.00049589,120]
[381134465,1756065056384,-816.33,0.00049589,120]
[381134467,1756065056394,-480.0,0.00049589,120]
[381134469,1756065056403,-480.0,0.00049589,120]
[381134471,1756065056413,-579.32,0.00049589,120]
[381134473,1756065056422,-480.0,0.00049589,120]
[381134475,1756065056432,-480.0,0.00049589,120]
[381134477,1756065056441,-480.0,0.00049589,120]
[381134479,1756065056450,-4319.36,0.00049589,120]
[381134481,1756065056460,-480.0,0.00049589,120]
[381134483,1756065056469,-480.0,0.00049589,120]
[381134485,1756065056479,-151.0,0.00049589,120]
[381134487,1756065056489,-4356.01,0.00049589,120]
[381134489,1756065056498,-480.0,0.00049589,120]
[381134491,1756065056507,-480.0,0.00049589,120]
[381134493,1756065056518,-647.0,0.00049589,120]
[381134495,1756065056528,-5229.98,0.00049589,120]
[381134498,1756065056537,-46.10211397,0.00049589,120]
[381134534,1756065056873,-932.93788603,0.00049589,120]
[381134537,1756065056887,-480.0,0.00049589,120]
[381134539,1756065056902,-600.05,0.00049589,120]
[381134542,1756065056917,-480.0,0.00049589,120]
[381134544,1756065056933,-480.0,0.00049589,120]
[381134547,1756065056949,-205.55865391,0.00049589,120]
[381134550,1756065056967,-274.44134609,0.00049589,120]
[381134553,1756065056981,-1391.11,0.00049589,120]
[381134555,1756065056997,-1719.94865391,0.00049589,120]
[381134562,1756065057045,-151.0,0.000426,120]
[381134564,1756065057059,-151.0,0.000493,120]
[381134567,1756065057082,-4599.85134609,0.00049589,120]
[381134570,1756065057098,-480.0,0.00049589,120]
[381134572,1756065057111,-4936.02910222,0.00049589,120]
[381134575,1756065057127,-1121.78309684,0.00049589,120]
[381134635,1756065057714,-258.41553178,0.00028507,2]
[381134637,1756065057727,-500.0,0.00028906,2]
[381134639,1756065057741,-500.0,0.00028906,2]
[381134642,1756065057754,-500.0,0.00028906,2]
[381134644,1756065057767,-151.0,0.000426,120]
[381134647,1756065057780,-151.0,0.00049089,120]
[381134649,1756065057793,-160.766544,0.00049089,120]
[381134651,1756065057807,-210.868975,0.00049089,120]
[381134653,1756065057820,-203.727708,0.00049099,120]
[381134656,1756065057833,-4657.64780094,0.00049589,120]
[381134658,1756065057846,-3572.29,0.00049589,120]
[381134660,1756065057858,-461.23540434,0.00049589,120]
[381134663,1756065057871,-480.0,0.00049589,120]
[381134665,1756065057884,-480.0,0.00049589,120]
[381134668,1756065057897,-480.0,0.00049589,120]
[381134670,1756065057909,-854.25,0.00049589,120]
[381134672,1756065057922,-2426.45,0.00049589,120]
[381134675,1756065057935,-151.0,0.00049589,15]
[381134677,1756065057948,-1057.85,0.00049589,120]
[381134680,1756065057960,-151.0,0.00049589,15]
[381134682,1756065057973,-3732.74,0.00049589,30]
[381134684,1756065057986,-155.826023,0.00049589,15]
[381134687,1756065057999,-9921.85,0.00049589,120]
[381134689,1756065058012,-885.04,0.00049589,120]
[381134691,1756065058025,-536.16,0.00049589,120]
[381134694,1756065058037,-480.0,0.00049589,120]
[381134696,1756065058051,-480.0,0.00049589,120]
[381134698,1756065058068,-484.38,0.00049589,120]
[381134700,1756065058082,-4270.7,0.00049589,120]
[381134703,1756065058094,-908.75,0.00049589,120]
[381134705,1756065058107,-480.0,0.00049589,120]
[381134707,1756065058121,-480.0,0.00049589,120]
[381134710,1756065058132,-2353.66,0.00049589,120]
[381134712,1756065058145,-480.0,0.00049589,120]
[381134714,1756065058154,-1960.52,0.00049589,120]
[381134716,1756065058164,-1965.38,0.00049589,120]
[381134718,1756065058174,-1368.31,0.00049589,120]
[381134720,1756065058185,-151.69218898,0.00049589,120]
[381134722,1756065058196,-1303.39,0.00049589,120]
[381134724,1756065058205,-499.17,0.00049589,120]
[381134726,1756065058215,-480.0,0.00049589,120]
[381134728,1756065058225,-30505.02,0.00049589,120]
[381134730,1756065058235,-513.28662208,0.00049589,120]
[381134732,1756065058245,-1565.58,0.00049589,120]
[381134734,1756065058254,-480.0,0.00049589,120]
[381134736,1756065058263,-711.95,0.00049589,120]
[381134738,1756065058272,-480.0,0.00049589,120]
[381134740,1756065058281,-1199.07,0.00049589,120]
[381134742,1756065058291,-8492.4,0.00049589,120]
[381134744,1756065058301,-480.0,0.00049589,120]
[381134746,1756065058311,-480.0,0.00049589,120]
[381134748,1756065058322,-500.0,0.00049589,120]
[381134750,1756065058332,-500.0,0.00049589,120]
[381134752,1756065058341,-2493.21,0.00049589,120]
[381134754,1756065058351,-480.0,0.00049589,120]
[381134756,1756065058360,-603.08,0.00049589,120]
[381134758,1756065058370,-151.0,0.00049589,120]
[381134760,1756065058380,-500.0,0.00049589,120]
[381134762,1756065058390,-280.599709,0.00049589,120]
[381134764,1756065058400,-480.0,0.00049589,120]
[381134766,1756065058409,-500.0,0.00049589,120]
[381134767,1756065058419,-500.0,0.00049589,120]
[381134768,1756065058428,-3155.6,0.00049589,120]
[381134769,1756065058438,-480.0,0.00049589,120]
[381134770,1756065058447,-500.0,0.00049589,120]
[381134771,1756065058456,-1405.43,0.00049589,120]
[381134772,1756065058465,-488.68653815,0.00049589,120]
[381134773,1756065058475,-151.0,0.00049589,120]
[381134774,1756065058484,-480.0,0.00049589,120]
[381134775,1756065058493,-1264.822698,0.00049589,120]
[381134776,1756065058503,-289.460494,0.00049589,120]
[381134777,1756065058866,-1264.822698,0.00049589,120]
[381134778,1756065058900,-495.71667735,0.00049589,120]
[381134779,1756065058923,-637.26332265,0.00049589,120]
[381134780,1756065058933,-151.0,0.00049589,120]
[381134781,1756065058942,-582.65,0.00049589,120]
[381134782,1756065058951,-480.0,0.00049589,120]
[381134783,1756065058960,-1264.822698,0.00049589,120]
[381134784,1756065058969,-289.460494,0.00049589,120]
[381134785,1756065058979,-480.0,0.00049589,120]
[381134786,1756065058988,-1264.822698,0.00049589,120]
[381134787,1756065058997,-190.1908699,0.00049589,120]
[381134788,1756065059008,-59.2461311,0.00049589,120]
[381134789,1756065059017,-1264.822698,0.00049589,120]
[381134790,1756065059026,-480.0,0.00049589,120]
[381134791,1756065059036,-1264.822698,0.00049589,120]
[381134792,1756065059045,-289.460494,0.00049589,120]
[381134793,1756065059054,-480.0,0.00049589,120]
[381134794,1756065059068,-1264.822698,0.00049589,120]
[381134795,1756065059078,-1264.822704,0.00049589,120]
[381134796,1756065059088,-480.0,0.00049589,2]
[381134797,1756065059097,-289.460496,0.00049589,120]
[381134798,1756065059108,-1655.49,0.00049589,120]
[381134799,1756065059117,-490.79,0.00049589,120]
[381134800,1756065059127,-480.0,0.00049589,120]
[381134801,1756065059136,-480.0,0.00049589,7]
[381134802,1756065059145,-574.79,0.00049589,120]
[381134803,1756065059154,-3837.05,0.00049589,120]
[381134804,1756065059163,-2040.96,0.00049589,120]
[381134805,1756065059172,-480.0,0.00049589,120]
[381134806,1756065059182,-2979.35,0.00049589,120]
[381134807,1756065059191,-961.72170526,0.00049589,120]
[381134808,1756065059221,-542.528,0.00049589,120]
[381134809,1756065059231,-7448.63029474,0.00049589,120]
[381134810,1756065059240,-480.0,0.00049589,120]
[381134811,1756065059249,-480.0,0.00049589,2]
[381134812,1756065059258,-480.0,0.00049589,120]
[381134813,1756065059267,-480.0,0.00049589,120]
[381134814,1756065059277,-151.0,0.00049589,120]
[381134815,1756065059286,-480.0,0.00049589,120]
[381134816,1756065059295,-480.0,0.00049589,120]
[381134817,1756065059304,-151.0,0.00049589,120]
[381134818,1756065059313,-151.0,0.00049589,120]
[381134819,1756065059324,-480.0,0.00049589,120]
[381134820,1756065059334,-151.0,0.00049589,120]
[381134821,1756065059343,-151.0,0.00049589,120]
[381134822,1756065059352,-151.0,0.00049589,120]
[381134823,1756065059362,-190.5699144,0.00049589,2]
[381134824,1756065059371,-480.0,0.00049589,120]
[381134825,1756065059380,-480.0,0.00049589,120]
[381134826,1756065059389,-200.0,0.00049649,120]
[381134827,1756065059398,-200.0,0.00049654,120]
[381134828,1756065059407,-200.0,0.000497,120]
[381134829,1756065059416,-194.47307489,0.00049726,120]
[381134830,1756065059425,-480.0,0.00049863,120]
[381134831,1756065059434,-480.0,0.00049863,120]
[381134832,1756065059443,-480.0,0.00049863,120]
[381134833,1756065059452,-480.0,0.00049863,120]
[381134834,1756065059461,-548.89,0.00049863,120]
[381134835,1756065059471,-480.0,0.00049863,120]
[381134836,1756065059480,-721.69,0.00049863,120]
[381134837,1756065059489,-480.0,0.00049863,120]
[381134838,1756065059498,-480.0,0.00049863,120]
[381134839,1756065059507,-784.4,0.00049863,120]
[381134840,1756065059516,-582.59591884,0.00049863,120]
[381134841,1756065059525,-480.0,0.00049863,120]
[381134842,1756065059534,-480.0,0.00049863,120]
[381134843,1756065059543,-578.33731971,0.00049863,120]
[381134844,1756065059552,-677.31,0.00049863,120]
[381134845,1756065059561,-480.0,0.00049863,120]